[Event "44th Chess Olympiad Open 2022"]
[Site "Chennai"]
[Date "2022.08.07"]
[Round "9.21"]
[White "Kozul, Zdenko"]
[Black "Diaz Hollemaert, Nahuel"]
[Result "1-0"]
[WhiteElo "2602"]
[BlackElo "2425"]
[Annotator "TA"]
[PlyCount "113"]
[EventDate "2022.??.??"]
[TimeControl "60"]

{[%evp 17,113,1,1,6,6,-10,32,33,33,37,42,42,53,62,77,78,78,76,78,76,76,76,84,
82,91,92,137,90,93,66,68,41,57,56,57,57,77,64,88,56,142,146,139,61,193,160,203,
227,300,297,354,279,306,298,304,305,285,283,381,380,371,302,386,381,387,376,
486,439,551,455,488,489,435,441,466,459,517,507,558,519,774,766,828,621,610,
610,704,701,692,686,745,741,727,719,1089,1062,1065,1011]} 1. d4 {[%emt 0:00:09]
} Nf6 {[%emt 0:00:08]} 2. c4 {[%emt 0:00:15]} e6 {[%emt 0:00:08]} 3. g3 {
[%emt 0:00:54]} d5 {[%emt 0:02:03]} 4. Bg2 {[%emt 0:00:12]} Bb4+ {[%emt 0:00:
00]} 5. Bd2 {[%emt 0:01:21]} Be7 {[%emt 0:00:18]} 6. Nf3 {[%emt 0:00:13]} O-O {
[%emt 0:00:28]} 7. O-O {[%emt 0:00:18]} c6 {[%emt 0:00:27]} 8. Qb3 {[%emt 0:00:
00]} b6 {[%emt 0:13:40]} 9. cxd5 {[%emt 0:03:07]} cxd5 {[%emt 0:00:47]} 10. Rc1
{[%emt 0:00:30] E11: Bogo-Indian.} Bb7 {[%emt 0:04:00]} 11. a4 {[%emt 0:01:54]
[%cal Ya2a4,Ya4a5] [#]} a6 $146 {[%emt 0:12:39]} ({Predecessor:} 11... Nc6 12.
e3 Rc8 13. Nc3 Qd7 14. Qd1 Qd6 15. Be1 h6 16. Na2 a5 17. Nc3 Qb8 {½-½ (27)
Even,R (2474)-Yamaliev,V (2468) ICCF email 2019}) 12. Ne5 {[%emt 0:00:00]
White is slightly better.} Nfd7 {[%emt 0:01:46]} 13. Nxd7 {[%emt 0:00:00]} Nxd7
{[%emt 0:09:53]} 14. a5 {[%emt 0:00:52]} b5 {[%emt 0:20:27]} 15. Bb4 {[%emt 0:
00:33]} Nb8 {[%emt 0:02:13]} 16. Bxe7 {[%emt 0:03:13] White is more active.}
Qxe7 {[%emt 0:00:01]} 17. Nd2 {[%emt 0:00:08]} Nc6 {[%emt 0:00:17]} 18. Qe3 {
[%emt 0:03:14]} Rac8 {[%emt 0:08:30]} 19. Nb3 {[%emt 0:00:29]} Rc7 {[%emt 0:00:
33]} 20. Rc5 {[%emt 0:25:20]} Rd7 {[%emt 0:01:35]} 21. Rac1 {[%emt 0:01:15]}
Rd6 {[%emt 0:00:07] [#]} 22. h4 {[%emt 0:02:44]} ({White should play} 22. Bxd5
$1 Nxd4 23. Rc7 (23. Qxd4 Bxd5 24. Nd2 Rd7 $11) (23. Nxd4 Rxd5 24. Nc6 Bxc6 $14
)) 22... Rfd8 {[%emt 0:00:48]} 23. f4 {[%emt 0:06:52]} h6 {[%emt 0:01:30]} 24.
h5 {[%emt 0:02:40]} Kh8 {[%emt 0:04:44]} 25. Qd2 {[%emt 0:00:35]} f6 {[%emt 0:
00:23]} 26. e3 {[%emt 0:01:46]} Qf7 {[%emt 0:02:20]} 27. Bf3 {[%emt 0:02:26]}
Rg8 {[%emt 0:00:44]} 28. Qg2 {[%emt 0:00:00]} g5 {[%emt 0:00:26] [#]} (28...
Rb8 $14) 29. hxg6 $1 $16 {[%emt 0:01:38]} Qxg6 {[%emt 0:00:11]} 30. Kh2 {
[%emt 0:00:35]} ({White should try} 30. Kf2 $16) 30... b4 {[%emt 0:02:16]
Black cannot hold the game after this.} (30... e5 $1 $14) 31. R5c2 {[%emt 0:03:
36]} Rg7 {[%emt 0:01:15]} 32. Qh3 {[%emt 0:03:32]} Nd8 {[%emt 0:05:06]} 33. Nc5
{[%emt 0:00:49]} Bc6 {[%emt 0:01:27]} 34. Bh5 {[%emt 0:00:22]} Qh7 {[%emt 0:00:
44]} 35. Qh4 {[%emt 0:00:08]} (35. Nxa6 Ba4 $16) 35... Bb5 {[%emt 0:02:05]} 36.
Qxf6 {[%emt 0:01:43]} Qf5 {[%emt 0:00:42]} 37. Qh4 {[%emt 0:03:25]} ({Avoid
the trap} 37. Qxh6+ $2 Rh7 38. Qxh7+ Qxh7 $19) 37... Nc6 {[%emt 0:00:59]} 38.
g4 {[%emt 0:02:17]} Qf8 {[%emt 0:00:22]} 39. Ra1 {[%emt 0:00:50]} Qb8 {[%emt 0:
01:45]} 40. Kh1 {[%emt 0:02:04]} ({Weaker is} 40. Qf6 Qd8 41. Qxd8+ (41. Qxh6+
Rh7 $18) 41... Nxd8 $18) 40... Qd8 {[%emt 0:00:48]} 41. Qg3 {[%emt 0:30:43]}
Kg8 {[%emt 0:10:50]} 42. Rh2 {[%emt 0:00:00] White is clearly winning.} Qe7 {
[%emt 0:10:29]} 43. Qh3 {[%emt 0:00:00]} e5 {[%emt 0:00:00]} 44. fxe5 {[%emt 0:
00:00]} Nxe5 {[%emt 0:00:16]} 45. dxe5 {[%emt 0:00:00]} Qxe5 {[%emt 0:03:16]}
46. Nb3 {[%emt 0:00:00] Inhibits d4.} Bd3 {[%emt 0:00:00]} 47. Nd4 {[%emt 0:00:
00] Against Re6} Be4+ {[%emt 0:00:01]} 48. Kg1 {[%emt 0:00:00]} Rc7 {[%emt 0:
00:28]} 49. Rf2 {[%emt 0:00:00]} Rf6 {[%emt 0:00:00]} 50. Qh2 {[%emt 0:00:00]}
Qxh2+ {[%emt 0:00:42]} 51. Rxh2 {[%emt 0:00:00]} Rc5 {[%emt 0:00:31]} 52. Rf2 {
[%emt 0:00:00]} Kg7 {[%emt 0:00:31]} 53. Be8 {[%emt 0:00:00]} Rxf2 {[%emt 0:00:
53]} 54. Kxf2 {[%emt 0:00:00] Ne6+ is the strong threat.} Kf6 {[%emt 0:00:04]
Against Ne6} 55. Bc6 {[%emt 0:00:00]} Ke5 {[%emt 0:00:26]} 56. Bb7 {[%emt 0:00:
00]} Bd3 {[%emt 0:00:19]} 57. Rh1 {[%emt 0:00:00] Weighted Error Value:
White=0.17 (very precise) /Black=0.32} 1-0

[Event "44th Chess Olympiad Open 2022"]
[Site "Chennai"]
[Date "2022.08.07"]
[Round "9.21"]
[White "Hoffman, Alejandro"]
[Black "Brkic, Ante"]
[Result "1/2-1/2"]
[WhiteElo "2390"]
[BlackElo "2611"]
[Annotator "TA"]
[PlyCount "60"]
[EventDate "2022.??.??"]
[TimeControl "60"]

{[%evp 17,60,-2,-11,-3,0,0,0,-10,-8,0,0,0,0,0,3,8,0,-18,-13,-10,-9,-15,0,0,0,0,
0,-24,68,17,17,25,17,0,0,0,0,0,0,0,0,0,0,0,0]} 1. d4 {[%emt 0:00:05][%cal
Yd2d4,Yd4c5]} Nf6 {[%emt 0:00:07][%cal Yg8f6,Yf6e4,Ye4d2]} 2. c4 {[%emt 0:00:
16]} e6 {[%emt 0:00:07]} 3. Nc3 {[%emt 0:00:27]} Bb4 {[%emt 0:00:00]} 4. Qb3 {
[%emt 0:00:16]} c5 {[%emt 0:01:52]} 5. dxc5 {[%emt 0:00:12]} Nc6 {[%emt 0:01:
03]} 6. Nf3 {[%emt 0:00:34][%cal Yg1f3,Yf3d2,Yd2e4]} Ne4 {[%emt 0:11:16]} 7.
Bd2 {[%emt 0:01:03]} Nxd2 {[%emt 0:01:16]} 8. Nxd2 {[%emt 0:11:37]} O-O {
[%emt 0:11:30]} 9. e3 {[%emt 0:00:00]} Bxc5 {[%emt 0:00:00]} 10. Rd1 {[%emt 0:
00:00] E23: Nimzo-Indian: 4 Qb3 c5 5 dxc5 Nc6.} b6 {[%emt 0:19:37]} 11. Nde4 {
[%emt 0:09:01]} Be7 {[%emt 0:01:51]} 12. Be2 {[%emt 0:01:00]} Bb7 {[%emt 0:01:
22] With the idea ...Na5.} 13. O-O {[%emt 0:00:00] [#]} f5 $146 {[%emt 0:04:47]
} ({Predecessor:} 13... Na5 14. Qc2 Rc8 15. b3 d5 16. Qb2 f5 17. Ng3 Bf6 18.
Nh5 b5 19. Nxf6+ Qxf6 {0-1 (92) Chernykh,A (2119) -Becker,D (2247) Baden 2019})
14. Nd6 {[%emt 0:04:56]} Bxd6 {[%emt 0:00:07]} 15. Rxd6 {[%emt 0:00:08]} f4 {
[%emt 0:10:12][%cal Yf4f3]} 16. Qd1 {[%emt 0:00:00]} Ne5 {[%emt 0:00:00][%cal
Yc6e5,Ye5g6,Yg6f4,Yf4h3] [#] ...f3 is the strong threat.} 17. Qd4 {[%emt 0:03:
18]} Qg5 {[%emt 0:00:00][%csl Gb7][%cal Rg5g2]} 18. f3 $1 {[%emt 0:02:23][%cal
Yh2h4]} fxe3 {[%emt 0:00:00]} 19. Ne4 {[%emt 0:04:02]} Bxe4 {[%emt 0:06:10]}
20. Qxe4 {[%emt 0:00:05] And now f4 would win.} Ng6 {[%emt 0:00:12] Against f4.
Threatens to win with ...Nf4.} 21. g3 {[%emt 0:01:05]} Nf4 {[%emt 0:06:05]} 22.
Re1 {[%emt 0:00:54]} h5 {[%emt 0:00:00]} (22... Qa5 $11 23. Kf1 Nxe2 24. Rxe2 {
[#]} Rxf3+ $1 25. Qxf3 Rf8 26. Rxe3 Qc5 27. Qxf8+ Kxf8) 23. Bd3 {[%emt 0:03:55]
} (23. Rxd7 $14 h4 24. Bd3 Nh3+ 25. Kg2 (25. Kf1 Qh6 $14) 25... Nf4+ 26. Kh1
Nxd3 27. Rxd3 (27. Qxe6+ Kh7 $14)) 23... Rad8 $11 {[%emt 0:00:20]} 24. Rxe3 {
[%emt 0:08:29]} h4 {[%emt 0:00:04]} 25. Kf2 {[%emt 0:01:35] The position is
equal.} ({Not} 25. Qh7+ $2 Kf7 26. Kf2 Nh3+ 27. Ke2 Ke7 $19) 25... hxg3+ {
[%emt 0:00:40]} 26. hxg3 {[%emt 0:00:03] Dancing on a razor blade.} Nh3+ {
[%emt 0:01:15]} 27. Kg2 {[%emt 0:00:26]} Nf4+ {[%emt 0:00:04]} 28. Kf2 {
[%emt 0:00:06]} Nh3+ {[%emt 0:02:47]} 29. Kg2 {[%emt 0:00:02]} Nf4+ {[%emt 0:
00:36]} 30. Kf2 {[%emt 0:00:03]} Nh3+ {[%emt 0:00:00] Weighted Error Value:
White=0.08 (flawless) /Black=0.09 (flawless)} 1/2-1/2

[Event "44th Chess Olympiad Open 2022"]
[Site "Chennai"]
[Date "2022.08.07"]
[Round "9.21"]
[White "Vazquez Facundo"]
[Black "Bosiocic, Marin"]
[Result "0-1"]
[WhiteElo "2336"]
[BlackElo "2549"]
[Annotator "TA"]
[PlyCount "117"]
[EventDate "2022.??.??"]
[TimeControl "60"]

{[%evp 10,117,13,-6,18,3,16,5,5,7,0,0,0,0,0,0,0,0,0,0,24,-7,-7,-11,-13,-28,-11,
-87,-97,-108,-80,-101,-87,-117,-118,-187,-9,-8,-5,-12,0,0,0,0,2,6,6,0,0,0,0,0,
0,0,0,0,0,0,0,0,3,0,0,0,0,0,0,0,0,-9,-9,-25,0,0,5,0,0,0,0,0,12,-34,-33,-34,0,0,
0,-34,-34,-34,-34,-34,-29,-54,-54,-54,-54,-54,-54,-54,-52,-52,-52,-339,-321,
-360,-350,-388,-336,-309]} 1. d4 {[%emt 0:00:03]} Nf6 {[%emt 0:00:31]} 2. c4 {
[%emt 0:00:27]} e6 {[%emt 0:00:08]} 3. Nc3 {[%emt 0:00:06]} Bb4 {[%emt 0:00:21]
} 4. e3 {[%emt 0:00:08]} O-O {[%emt 0:00:11]} 5. Nf3 {[%emt 0:00:06]} d5 {
[%emt 0:00:13]} 6. Bd2 {[%emt 0:00:27]} Re8 {[%emt 0:00:28] E51: Nimzo-Indian:
Rubinstein: 4...0-0 5 Nf3 d5.} 7. Bd3 {[%emt 0:05:19]} b6 {[%emt 0:02:35]} 8.
cxd5 {[%emt 0:02:39]} exd5 {[%emt 0:00:36] The position is equal.} 9. Ne5 {
[%emt 0:00:27]} Ba6 {[%emt 0:08:22]} 10. Bxa6 {[%emt 0:12:26]} Nxa6 {[%emt 0:
00:00]} 11. Qa4 {[%emt 0:01:39]} Qc8 {[%emt 0:06:25]} 12. O-O {[%emt 0:02:44]}
Bd6 {[%emt 0:02:36] [#]} 13. Nd3 $146 {[%emt 0:09:24]} ({Predecessor:} 13. f4
c5 14. Be1 Nc7 15. Bh4 Ng4 16. Nd1 f6 17. Nxg4 Qxg4 18. dxc5 bxc5 19. Bf2 {
½-½ (52) Szczepkowska,K (2407)-Unuk,L (2356) Wroclaw 2021}) 13... c5 {
[%emt 0:04:34]} 14. Nb5 {[%emt 0:07:44]} Bb8 {[%emt 0:07:54]} 15. Nf4 {[%emt 0:
00:00]} (15. Rac1 $5 {[%cal Rf2f3]}) 15... Ne4 {[%emt 0:06:17]} 16. Rfd1 {
[%emt 0:04:17]} Bxf4 {[%emt 0:01:49]} 17. exf4 {[%emt 0:00:13]} c4 {[%emt 0:00:
00]} 18. b3 {[%emt 0:03:32]} (18. f3 $11 Nxd2 19. Nd6 (19. Rxd2 Re6 $11)) 18...
Nc7 $1 $17 {[%emt 0:04:01] Black is more active.} (18... Nxd2 $6 19. Rxd2 Re7
20. bxc4 $14) (18... c3 19. Bxc3 $1 Nc7 20. Be1 $14) 19. bxc4 {[%emt 0:04:21] 
[#]} Qd7 $1 {[%emt 0:00:47] aiming for ...dxc4.} 20. Qb4 {[%emt 0:14:13]} (20.
Rab1 $2 dxc4 21. Be1 (21. Qxc4 $2 Nxb5 22. Qxb5 Qxb5 $19) 21... Nd6 $19) 20...
dxc4 {[%emt 0:02:41]} 21. a4 {[%emt 0:00:32]} Nxb5 {[%emt 0:06:40]} 22. axb5 {
[%emt 0:00:55]} (22. Qxb5 $17 Qxb5 23. axb5) 22... Qxd4 $2 {[%emt 0:01:52]} (
22... Rac8 $19 {And now ...Nf6 would win.} 23. Rdc1 Rc7) 23. Be3 $11 {[%emt 0:
00:00]} Qc3 {[%emt 0:00:34]} 24. Qa4 {[%emt 0:01:29]} Qb3 {[%emt 0:04:23]} (
24... Rec8 {is interesting.} 25. Bxb6 Qb3 26. Bxa7 Nc3) 25. Qxb3 {[%emt 0:00:
00]} cxb3 {[%emt 0:00:38]} 26. Rdb1 {[%emt 0:00:18]} f6 {[%emt 0:05:09]} 27.
Rxb3 {[%emt 0:00:30]} Rad8 {[%emt 0:00:44]} 28. g3 {[%emt 0:01:52]} Re7 {
[%emt 0:00:41]} 29. Kg2 {[%emt 0:02:19]} Rd5 {[%emt 0:01:16]} 30. Rba3 {
[%emt 0:03:15]} Rdd7 {[%emt 0:00:21]} 31. Kf3 {[%emt 0:01:37]} h5 {[%emt 0:00:
00]} 32. h3 {[%emt 0:00:31]} f5 {[%emt 0:01:00]} 33. g4 {[%emt 0:03:44]} hxg4+
{[%emt 0:00:17]} 34. hxg4 {[%emt 0:00:03]} g6 {[%emt 0:02:57]} 35. gxf5 {
[%emt 0:01:27]} gxf5 {[%emt 0:00:10]} 36. Rg1+ {[%emt 0:01:15]} Rg7 {[%emt 0:
00:00]} 37. Rh1 {[%emt 0:00:50]} Rh7 {[%emt 0:00:27]} 38. Rg1+ {[%emt 0:00:32]}
Kf7 {[%emt 0:00:27]} 39. Rc1 {[%emt 0:02:16]} Nd6 {[%emt 0:03:21]} 40. Rd3 {
[%emt 0:01:16]} Ke8 {[%emt 0:05:34]} (40... Ke7 $5 {[%cal Rd6b5]}) 41. Rd5 {
[%emt 0:30:42]} Rhf7 {[%emt 0:31:58]} 42. Rh1 {[%emt 0:02:43]} Kd8 {[%emt 0:00:
00]} 43. Rh5 {[%emt 0:00:52]} Kc7 {[%emt 0:03:51]} 44. Bc1 {[%emt 0:00:00]} Rh7
{[%emt 0:00:00]} 45. Rg5 {[%emt 0:00:00]} (45. Rxh7 $11 Rxh7 46. Bb2) 45...
Rh3+ $15 {[%emt 0:00:00]} 46. Rg3 {[%emt 0:00:00]} Rh2 {[%emt 0:00:00]} 47. Rg2
{[%emt 0:00:00]} ({Much worse is} 47. Rg6 {[#]} Rxf2+ $1 48. Kxf2 Ne4+ 49. Ke3
Rxd5 $17) 47... Rh3+ {[%emt 0:00:00]} 48. Rg3 {[%emt 0:00:00]} Rxg3+ {[%emt 0:
00:00]} 49. fxg3 {[%emt 0:00:00] Endgame KRB-KRN} Nc4 {[%emt 0:00:00]} 50. Rxf5
{[%emt 0:00:00]} Rd1 {[%emt 0:00:00]} 51. Be3 {[%emt 0:00:00]} Rd3 $1 {[%emt 0:
00:00]} 52. Rf7+ {[%emt 0:00:00]} Kd8 $1 {[%emt 0:00:00]} 53. Ke4 {[%emt 0:00:
00]} Rxe3+ {[%emt 0:00:00] KRN-KR} 54. Kd4 {[%emt 0:00:00]} Nd6 {[%emt 0:00:00]
} 55. Rf6 $1 {[%emt 0:00:00]} Ne8 {[%emt 0:00:00]} ({Reject} 55... Rxg3 56.
Rxd6+ Ke7 57. Rd5 $11) 56. Rg6 {[%emt 0:00:00] Now White is beyond hope.} ({
Only move:} 56. Rxb6 $1 $15 axb6 57. Kxe3) 56... Rf3 $19 {[%emt 0:00:00]} 57.
Kc4 {[%emt 0:00:37]} Kd7 {[%emt 0:00:00]} 58. Kd5 {[%emt 0:00:45]} Rc3 {
[%emt 0:00:00]} 59. Kd4 {[%emt 0:05:22] Weighted Error Value: White=0.17 (very
precise) /Black=0.11 (very precise)} 0-1

[Event "44th Chess Olympiad Open 2022"]
[Site "Chennai"]
[Date "2022.08.07"]
[Round "9.22"]
[White "Jobava, Baadur"]
[Black "Paragua, Mark"]
[Result "1/2-1/2"]
[WhiteElo "2585"]
[BlackElo "2461"]
[Annotator "TA"]
[PlyCount "45"]
[EventDate "2022.??.??"]
[TimeControl "60"]

{[%evp 20,45,0,0,6,0,0,0,5,0,0,3,0,0,14,0,0,0,0,-23,0,0,0,-12,0,0,0,-20]} 1. e4
{[%emt 0:00:14][%cal Ye2e4,Ye4e5]} c5 {[%emt 0:00:13]} 2. c3 {[%emt 0:00:00]}
Nf6 {[%emt 0:00:14]} 3. e5 {[%emt 0:00:06]} Nd5 {[%emt 0:00:04]} 4. Nf3 {
[%emt 0:00:10]} d6 {[%emt 0:00:14]} 5. exd6 {[%emt 0:00:33]} e6 {[%emt 0:00:00]
} 6. g3 {[%emt 0:00:23]} Bxd6 {[%emt 0:00:16]} 7. Bg2 {[%emt 0:00:06]} Nc6 {
[%emt 0:00:34]} 8. O-O {[%emt 0:01:01]} O-O {[%emt 0:00:32]} 9. d4 {[%emt 0:00:
00]} cxd4 {[%emt 0:00:20]} 10. Nxd4 {[%emt 0:00:06]} Nxd4 {[%emt 0:00:04]} 11.
Qxd4 {[%emt 0:00:10]} Qc7 {[%emt 0:00:06] B22: Sicilian: 2 c3.} 12. c4 $1 {
[%emt 0:00:15] is recently more successful than 12.Nd2.} Nf6 {[%emt 0:00:00]}
13. Nc3 {[%emt 0:00:34] [#] Nb5 is the strong threat.} Bd7 {[%emt 0:00:00]} 14.
Nb5 {[%emt 0:00:08]} Bxb5 {[%emt 0:00:06]} 15. cxb5 {[%emt 0:00:05]} Rfd8 {
[%emt 0:00:12][%cal Yd6g3] [#] White must now prevent ...Bxg3!} 16. Qd3 $146 {
[%emt 0:01:12]} ({Predecessor:} 16. Qc3 Nd5 17. Qb3 Be5 18. Bg5 Rd7 19. Rfd1 h6
20. Rac1 Nc3 21. bxc3 Rxd1+ 22. Rxd1 hxg5 23. c4 Rc8 {½-½ (23) Vazquez,G 
(2545)-Santos Latasa,J (2640) Mexico City 2022}) 16... Rac8 {[%emt 0:00:00]}
17. Qb3 {[%emt 0:06:55]} Bc5 {[%emt 0:10:46]} 18. a4 {[%emt 0:09:12]} h6 {
[%emt 0:09:28]} 19. Qf3 {[%emt 0:05:23]} Nd5 {[%emt 0:00:43]} 20. Qg4 {[%emt 0:
03:41] Against Bd4. The position is equal.} Nf6 {[%emt 0:02:34]} 21. Qf3 {
[%emt 0:00:04]} Nd5 {[%emt 0:00:31]} 22. Qg4 {[%emt 0:20:46] Inhibits Bd4.} Nf6
{[%emt 0:01:18]} 23. Qf3 {[%emt 0:01:19] An interesting draw. Weighted Error
Value: White=0.04 (flawless) /Black=0.04 (flawless)} 1/2-1/2

[Event "44th Chess Olympiad Open 2022"]
[Site "Chennai"]
[Date "2022.08.07"]
[Round "9.22"]
[White "Paichadze, Luka"]
[Black "Laylo, Darwin"]
[Result "1/2-1/2"]
[WhiteElo "2561"]
[BlackElo "2432"]
[Annotator "TA"]
[PlyCount "80"]
[EventDate "2022.??.??"]
[TimeControl "60"]

{[%evp 21,80,23,27,41,33,12,23,26,26,0,0,0,-16,-10,8,14,14,10,5,0,0,0,0,0,0,0,
12,18,8,0,7,7,31,0,0,0,0,0,0,0,0,0,0,0,0,0,0,0,0,0,0,0,0,0,0,0,0,0,0,0,0]} 1.
e4 {[%emt 0:00:08]} e5 {[%emt 0:00:32]} 2. Nf3 {[%emt 0:01:07]} Nf6 {[%emt 0:
00:00]} 3. Nxe5 {[%emt 0:03:52]} d6 {[%emt 0:00:08][%cal Yd7d6,Yd6d5]} 4. Nf3 {
[%emt 0:00:04]} Nxe4 {[%emt 0:00:06]} 5. d4 {[%emt 0:00:27]} d5 {[%emt 0:00:11]
} 6. Bd3 {[%emt 0:00:22]} Nc6 {[%emt 0:00:13]} 7. O-O {[%emt 0:00:00]} Be7 {
[%emt 0:00:34]} 8. c4 {[%emt 0:01:14]} Nb4 {[%emt 0:01:12]} 9. Be2 {[%emt 0:00:
19][%cal Yd3e2,Ye2c4,Yc4b3]} dxc4 {[%emt 0:00:25]} 10. Bxc4 {[%emt 0:00:10]}
O-O {[%emt 0:00:05]} 11. Nc3 {[%emt 0:00:12]} Nd6 {[%emt 0:03:11]} 12. Bb3 {
[%emt 0:02:51] C42: Petroff Defence: 3 Nxe5 and unusual White 3rd moves.} Bf6 {
[%emt 0:00:43]} 13. Be3 {[%emt 0:07:56]} Re8 {[%emt 0:04:55]} 14. h3 {[%emt 0:
22:12] White has an edge.} Bf5 {[%emt 0:12:40] [#]} 15. Qd2 $146 {[%emt 0:10:
00]} ({Predecessor:} 15. a3 Nd3 16. Rb1 c5 17. dxc5 Ne4 18. Bc2 Nxb2 19. Qxd8
Raxd8 20. Rxb2 Bxc3 21. Rxb7 Nxc5 22. Bxc5 Bxc2 23. Rxa7 {½-½ (71) Karpov,A 
(2705)-Kasparov,G (2715) Moscow 1985}) 15... Bd3 {[%emt 0:10:14]} 16. Rfc1 {
[%emt 0:02:14] [#] Black must now prevent Na4.} Bc4 {[%emt 0:04:36]} 17. Nb5 {
[%emt 0:05:22]} Bxb3 {[%emt 0:15:44]} 18. Qxb4 {[%emt 0:06:23]} Nxb5 {[%emt 0:
00:08]} 19. Qxb3 {[%emt 0:00:39]} c6 {[%emt 0:00:00]} 20. a4 {[%emt 0:02:56]}
Nxd4 {[%emt 0:05:15]} (20... Nd6 {seems wilder.} 21. Bf4 Re7 22. Be5 Ne4) 21.
Bxd4 {[%emt 0:00:08]} Bxd4 {[%emt 0:00:02]} 22. Nxd4 {[%emt 0:02:32]} Qxd4 {
[%emt 0:00:14]} 23. Qxb7 {[%emt 0:00:23]} Rab8 {[%emt 0:03:50]} 24. Qxc6 {
[%emt 0:00:46][%cal Yb2b3]} Qxb2 {[%emt 0:00:41]} 25. Re1 {[%emt 0:05:27]}
Rxe1+ {[%emt 0:03:54]} 26. Rxe1 $11 {[%emt 0:00:05] [#] Endgame White
threatens Re8+ and mate. KQR-KQR} g6 {[%emt 0:00:05]} 27. a5 {[%emt 0:06:22]} (
27. Re7 {is interesting.} a6 28. Qc7 Rf8 29. Qf4) 27... Qb4 {[%emt 0:07:09]
The position is equal.} 28. Re8+ {[%emt 0:00:48]} Rxe8 {[%emt 0:00:07]} 29.
Qxe8+ {[%emt 0:00:03] KQ-KQ} Kg7 {[%emt 0:00:50]} 30. Qe5+ {[%emt 0:00:08]} Kg8
{[%emt 0:00:06]} 31. Kh2 {[%emt 0:05:00]} a6 {[%emt 0:04:30]} 32. Qe8+ {
[%emt 0:01:01]} Kg7 {[%emt 0:00:02]} 33. Qe5+ {[%emt 0:00:06]} Kg8 {[%emt 0:00:
06]} 34. Qe8+ {[%emt 0:00:57]} Kg7 {[%emt 0:00:00] Strongly threatening ...
Qf4+.} 35. Qe5+ {[%emt 0:00:05]} Kg8 {[%emt 0:00:00]} 36. f4 {[%emt 0:02:02]}
Qb1 {[%emt 0:04:57]} 37. Qe8+ {[%emt 0:00:05]} Kg7 {[%emt 0:00:03]} 38. Qe5+ {
[%emt 0:00:05]} Kg8 {[%emt 0:00:03]} 39. Qe8+ {[%emt 0:08:48]} Kg7 {[%emt 0:00:
02]} 40. Qe5+ {[%emt 0:00:06]} Kg8 {[%emt 0:00:00] Weighted Error Value:
White=0.03 (flawless) /Black=0.03 (flawless)} 1/2-1/2

[Event "44th Chess Olympiad Open 2022"]
[Site "Chennai"]
[Date "2022.08.07"]
[Round "9.22"]
[White "Gomez, John Paul"]
[Black "Mchedlishvili, Mikheil"]
[Result "1/2-1/2"]
[WhiteElo "2451"]
[BlackElo "2593"]
[Annotator "TA"]
[PlyCount "43"]
[EventDate "2022.??.??"]
[TimeControl "60"]

{[%evp 19,43,30,26,12,8,0,4,0,0,-2,0,-1,0,-11,6,-12,-2,-14,-9,-14,0,0,0,-11,0,
0]} 1. d4 {[%emt 0:00:06]} Nf6 {[%emt 0:00:15]} 2. c4 {[%emt 0:00:12]} g6 {
[%emt 0:01:57]} 3. g3 {[%emt 0:02:36]} Bg7 {[%emt 0:00:18]} 4. Bg2 {[%emt 0:00:
00]} O-O {[%emt 0:02:04]} 5. Nc3 {[%emt 0:00:00]} d6 {[%emt 0:07:56]} 6. Nf3 {
[%emt 0:01:39][%cal Yg1f3,Yf3h4,Yh4g2,Yg2f4,Yf4d3,Yd3c5]} c6 {[%emt 0:00:00]}
7. O-O {[%emt 0:01:16]} Bf5 {[%emt 0:02:40]} 8. b3 {[%emt 0:12:59]} Ne4 {
[%emt 0:05:29]} 9. Bb2 {[%emt 0:01:13]} Nxc3 {[%emt 0:01:23]} 10. Bxc3 {
[%emt 0:00:19]} Be4 {[%emt 0:01:13]} 11. Nh4 {[%emt 0:00:00] E62: King's
Indian: Fianchetto: 6...c6 and Panno Variation (6...Nc6) without ...a6.} Bxg2 {
[%emt 0:01:43] The position is equal.} 12. Nxg2 {[%emt 0:00:00]} d5 {[%emt 0:
00:00]} 13. cxd5 {[%emt 0:00:00]} cxd5 {[%emt 0:02:14] [#]} 14. Rc1 $146 {
[%emt 0:00:00]} ({Predecessor:} 14. Nf4 Nc6 15. Rc1 Rc8 16. e3 Qd6 17. Qd2 Rc7
18. Rc2 Rfc8 19. Rfc1 e6 20. Nd3 {1-0 (50) Belousek,M (2065)-Nemec,P (2300)
Czech Republic 2000}) 14... Nc6 {[%emt 0:01:57]} 15. e3 {[%emt 0:00:34]} e6 {
[%emt 0:13:10]} 16. Nf4 {[%emt 0:03:09]} Qd7 {[%emt 0:01:39]} 17. Nd3 {[%emt 0:
00:00]} Rfc8 {[%emt 0:02:42]} 18. Nc5 {[%emt 0:01:47]} Qe7 {[%emt 0:03:50]} 19.
Nd3 {[%emt 0:04:18]} Qd7 {[%emt 0:00:09]} 20. Nc5 {[%emt 0:00:11]} Qe7 {
[%emt 0:00:23]} 21. Nd3 Qd7 {[%emt 0:00:00]} 22. Nc5 {[%emt 0:08:01] A rather
calm draw. Weighted Error Value: White=0.07 (flawless) /Black=0.04 (flawless)}
1/2-1/2